[Event "WYCC 2018 O16"]
[Site "Halkidiki"]
[Date "2018.10.26"]
[Round "7"]
[White "Loiacono, Leonardo"]
[Black "Guerra Rivera, Salvador"]
[Result "1/2-1/2"]
[ECO "E34"]
[WhiteElo "2277"]
[BlackElo "2340"]
[Annotator "NA"]
[PlyCount "118"]
[EventDate "2018.10.20"]
[EventType "swiss"]
[EventCountry "GRE"]
[SourceTitle "playchess.com"]
[Source "ChessBase"]
[SourceQuality "1"]
[TimeControl "40/5400+30:1800+30"]

1. d4 {[%emt 0:00:00]} Nf6 {[%emt 0:00:00]} 2. c4 {[%emt 0:00:00]} e6 {[%emt 0:00:25]} 3. Nc3 {[%emt 0:00:00]} Bb4 {[%emt 0:00:28]} 4. Qc2 {[%emt 0:00:00]} d5 {[%emt 0:00:22]} 5. cxd5 {[%emt 0:00:00]} Qxd5 {[%emt 0:00:22]} 6. Nf3 {[%emt 0:00:14]} Qf5 {[%emt 0:00:13]} 7. Qxf5 {[%emt 0:00:23]} exf5 {[%emt 0:00:06]} 8. a3 {[%emt 0:03:32]} Bd6 {[%emt 0:00:10]} 9. e3 {[%emt 0:01:29]} c6 {[%emt 0:00:49]} 10. Bd3 {[%emt 0:01:12]} O-O {[%emt 0:01:09]} 11. O-O {[%emt 0:00:10]} Re8 {[%emt 0:01:14]} 12. Bd2 $11 {[%emt 0:02:26]} g6 {[%emt 0:01:06]} 13. Rfc1 {[%emt 0:04:03]} Nbd7 {[%emt 0:04:10]} 14. Na4 {[%emt 0:12:15]} Nb6 {[%emt 0:12:48]} 15. Nc5 {[%emt 0:02:05]} Nbd5 {[%emt 0:00:42]} 16. g3 {[%emt 0:07:09]} b6 {[%emt 0:03:11]} 17. Na4 {[%emt 0:02:35]} Bd7 {[%emt 0:07:07]} 18. b4 {[%emt 0:02:23]} Ne4 {[%emt 0:02:25]} 19. Be1 {[%emt 0:00:10]} h6 {[%emt 0:06:53]} 20. Nb2 {[%emt 0:03:25]} b5 {[%emt 0:03:37]} 21. Bb1 {[%emt 0:02:54]} Ng5 {[%emt 0:17:24]} 22. Nxg5 {[%emt 0:14:51]} hxg5 {[%emt 0:00:16]} 23. Nd3 {[%emt 0:00:10]} f4 {[%emt 0:09:09]} 24. e4 {[%emt 0:06:57]} Rxe4 {[%emt 0:01:27]} 25. Ne5 {[%emt 0:00:05]} Rxe5 {[%emt 0:01:54]} 26. dxe5 {[%emt 0:00:09]} Bxe5 {[%emt 0:00:03]} 27. Ra2 {[%emt 0:00:10]} Nb6 {[%emt 0:01:36]} 28. Re2 {[%emt 0:04:41]} Bf6 {[%emt 0:04:29]} 29. Ba2 {[%emt 0:02:06]} Bg4 {[%emt 0:02:38]} 30. Rec2 {[%emt 0:00:11]} Bf3 {[%emt 0:00:21]} 31. Bc3 {[%emt 0:00:51]} Kg7 {[%emt 0:01:32]} 32. Bxf6+ {[%emt 0:00:58]} Kxf6 {[%emt 0:00:05]} 33. gxf4 {[%emt 0:01:43]} gxf4 {[%emt 0:06:26]} 34. Rc3 {[%emt 0:00:41]} Bd5 {[%emt 0:00:20]} 35. Bxd5 {[%emt 0:00:24]} cxd5 {[%emt 0:00:03]} 36. Rc5 {[%emt 0:00:55]} Rd8 {[%emt 0:00:35]} 37. Rxb5 {[%emt 0:01:01]} d4 {[%emt 0:00:33]} 38. Rbc5 {[%emt 0:02:25]} d3 {[%emt 0:00:49]} 39. Rd1 {[%emt 0:01:25]} Na4 {[%emt 0:00:28]} 40. Rc7 {[%emt 0:00:00]} Ke5 {[%emt 0:00:00]} 41. Rd2 {[%emt 0:08:01]} Kd4 {[%emt 0:06:20]} 42. Rxa7 {[%emt 0:02:50]} Kc3 {[%emt 0:03:54]} 43. Rxd3+ {[%emt 0:00:15]} Kxd3 {[%emt 0:00:29]} 44. Rxa4 {[%emt 0:00:05]} Ke2 {[%emt 0:00:12]} 45. b5 {[%emt 0:03:19]} Rd1+ {[%emt 0:00:49]} 46. Kg2 {[%emt 0:00:04]} f3+ {[%emt 0:00:10]} 47. Kg3 {[%emt 0:00:29]} Rg1+ {[%emt 0:00:08]} 48. Kh3 {[%emt 0:00:04]} Kxf2 {[%emt 0:00:19]} 49. b6 {[%emt 0:00:11]} Rb1 {[%emt 0:04:01]} 50. Rb4 {[%emt 0:00:05]} Rxb4 {[%emt 0:00:04]} 51. axb4 {[%emt 0:00:05]} Kg1 {[%emt 0:01:32]} 52. b7 {[%emt 0:00:07]} f2 {[%emt 0:00:02]} 53. b8=Q {[%emt 0:00:05]} f1=Q+ {[%emt 0:00:14]} 54. Kh4 {[%emt 0:01:41]} Qf6+ {[%emt 0:00:08]} 55. Kg4 {[%emt 0:00:34]} Qf5+ {[%emt 0:00:09]} 56. Kg3 {[%emt 0:00:07]} Qf2+ {[%emt 0:00:44]} 57. Kh3 {[%emt 0:00:06]} Qf5+ {[%emt 0:02:23]} 58. Kg3 {[%emt 0:00:12]} Qf2+ {[%emt 0:02:59]} 59. Kh3 {[%emt 0:00:10]} Qf5+ {[%emt 0:00:21]} 1/2-1/2

[Event "WYCC 2018 O16"]
[Site "Halkidiki"]
[Date "2018.10.26"]
[Round "7"]
[White "Thilakarathne, G M H"]
[Black "Olsen, Filip Boe"]
[Result "1/2-1/2"]
[ECO "B18"]
[WhiteElo "2268"]
[BlackElo "2335"]
[Annotator "NA"]
[PlyCount "45"]
[EventDate "2018.10.20"]
[EventType "swiss"]
[EventCountry "GRE"]
[SourceTitle "playchess.com"]
[Source "ChessBase"]
[SourceQuality "1"]
[TimeControl "40/5400+30:1800+30"]

1. e4 {[%emt 0:00:00]} c6 {[%emt 0:00:00]} 2. d4 {[%emt 0:00:00]} d5 {[%emt 0:00:00]} 3. Nc3 {[%emt 0:00:00]} dxe4 {[%emt 0:00:00]} 4. Nxe4 {[%emt 0:00:00]} Bf5 {[%emt 0:01:33]} 5. Ng3 {[%emt 0:00:00]} Bg6 {[%emt 0:00:06]} 6. Nh3 {[%emt 0:00:56]} Nf6 {[%emt 0:04:45]} 7. c3 {[%emt 0:00:23]} Nbd7 {[%emt 0:01:27]} 8. Bc4 {[%emt 0:00:36]} e6 {[%emt 0:01:39]} 9. Nf4 {[%emt 0:00:43]} Bd6 {[%emt 0:02:48]} 10. h4 {[%emt 0:01:38]} Qc7 $11 {[%emt 0:04:12] LiveBook: 6 Games} 11. h5 {[%emt 0:01:00]} Bxf4 {[%emt 0:10:41]} 12. hxg6 {[%emt 0:00:19]} fxg6 {[%emt 0:01:38]} 13. Bxf4 {[%emt 0:00:24]} Qxf4 {[%emt 0:00:08]} 14. Bxe6 {[%emt 0:00:34]} O-O-O {[%emt 0:00:50]} 15. O-O {[%emt 0:02:13]} h5 {[%emt 0:04:26]} 16. Re1 {[%emt 0:31:07]} Kb8 {[%emt 0:07:16]} 17. Qc1 {[%emt 0:12:32]} g5 {[%emt 0:04:32]} 18. Nf5 {[%emt 0:09:19]} g6 {[%emt 0:05:00]} 19. Qxf4+ {[%emt 0:03:48]} gxf4 {[%emt 0:00:16]} 20. Nd6 {[%emt 0:00:35]} Rhf8 {[%emt 0:08:21]} 21. Nf7 {[%emt 0:01:10]} Rde8 {[%emt 0:01:01]} 22. Ng5 {[%emt 0:00:54]} Nb6 {[%emt 0:08:43]} 23. Bb3 {[%emt 0:14:59]} 1/2-1/2

[Event "WYCC 2018 O16"]
[Site "Halkidiki"]
[Date "2018.10.26"]
[Round "7"]
[White "Nielsen, Andre"]
[Black "Alivodic, Dario"]
[Result "0-1"]
[ECO "C19"]
[WhiteElo "2260"]
[BlackElo "2082"]
[Annotator "NA"]
[PlyCount "78"]
[EventDate "2018.10.20"]
[EventType "swiss"]
[EventCountry "GRE"]
[SourceTitle "playchess.com"]
[Source "ChessBase"]
[SourceQuality "1"]
[TimeControl "40/5400+30:1800+30"]

1. e4 {[%emt 0:00:00]} e6 {[%emt 0:00:00]} 2. d4 {[%emt 0:00:00]} d5 {[%emt 0:00:00]} 3. Nc3 {[%emt 0:00:00]} Bb4 {[%emt 0:00:00]} 4. e5 {[%emt 0:00:13]} c5 {[%emt 0:00:00]} 5. a3 {[%emt 0:00:13]} Bxc3+ {[%emt 0:00:00]} 6. bxc3 {[%emt 0:00:11]} Ne7 {[%emt 0:00:00]} 7. a4 {[%emt 0:06:16]} Qa5 {[%emt 0:04:30]} 8. Qd2 {[%emt 0:01:19]} b6 {[%emt 0:10:01]} 9. Bb5+ {[%emt 0:08:14]} Bd7 {[%emt 0:01:00]} 10. Bd3 {[%emt 0:02:51]} Bxa4 {[%emt 0:06:24]} 11. Ba3 {[%emt 0:02:02]} Nec6 {[%emt 0:02:13]} 12. Nf3 {[%emt 0:03:54]} Nd7 {[%emt 0:01:02]} 13. O-O {[%emt 0:01:37]} b5 {[%emt 0:08:29]} 14. Qg5 {[%emt 0:12:29]} Qxc3 {[%emt 0:03:09]} 15. Qxg7 {[%emt 0:03:35]} Rf8 {[%emt 0:02:16]} 16. Ng5 {[%emt 0:17:18]} b4 {[%emt 0:10:12]} 17. Bb2 {[%emt 0:04:51]} Qxb2 {[%emt 0:00:11]} 18. Rxa4 {[%emt 0:00:21]} Qxd4 {[%emt 0:04:17]} 19. Nxh7 {[%emt 0:08:13]} Ncxe5 {[%emt 0:08:51]} 20. Kh1 {[%emt 0:01:19]} Nc6 {[%emt 0:01:00]} 21. Qxd4 {[%emt 0:10:03]} Nxd4 {[%emt 0:00:11]} 22. Nxf8 {[%emt 0:00:07]} Kxf8 {[%emt 0:00:23]} 23. Rfa1 {[%emt 0:01:39]} Ne5 {[%emt 0:07:05]} 24. f4 {[%emt 0:03:54]} Nec6 {[%emt 0:04:29]} 25. Rc1 {[%emt 0:00:36]} c4 {[%emt 0:00:53]} 26. Bf1 {[%emt 0:00:24]} a5 {[%emt 0:00:16]} 27. Kg1 {[%emt 0:01:17]} Ke7 {[%emt 0:00:36]} 28. Kf2 {[%emt 0:00:34]} Kd6 {[%emt 0:00:10]} 29. g4 {[%emt 0:00:50]} Kc5 {[%emt 0:00:14]} 30. h4 {[%emt 0:01:19]} Kb5 {[%emt 0:00:06]} 31. Ra2 {[%emt 0:01:17]} a4 {[%emt 0:01:05]} 32. Ke3 {[%emt 0:00:39]} Rg8 {[%emt 0:02:43]} 33. Bh3 {[%emt 0:02:08]} b3 {[%emt 0:00:23]} 34. cxb3 {[%emt 0:00:36]} axb3 {[%emt 0:03:18]} 35. Rb2 {[%emt 0:00:43]} Kb4 {[%emt 0:00:10]} 36. Rbb1 {[%emt 0:00:27]} c3 {[%emt 0:01:05]} 37. Kd3 {[%emt 0:01:27]} c2 {[%emt 0:00:10]} 38. Rb2 {[%emt 0:00:18]} Ka3 {[%emt 0:00:16]} 39. Kc3 {[%emt 0:04:50]} Ne2+ {[%emt 0:00:21]} 0-1

[Event "WYCC 2018 O16"]
[Site "Halkidiki"]
[Date "2018.10.26"]
[Round "7"]
[White "Juksta, Karolis"]
[Black "Baenziger, Fabian"]
[Result "1-0"]
[ECO "E20"]
[WhiteElo "2234"]
[BlackElo "2355"]
[Annotator "NA"]
[PlyCount "55"]
[EventDate "2018.10.20"]
[EventType "swiss"]
[EventCountry "GRE"]
[SourceTitle "playchess.com"]
[Source "ChessBase"]
[SourceQuality "1"]
[TimeControl "40/5400+30:1800+30"]

1. d4 {[%emt 0:00:00]} Nf6 {[%emt 0:00:00]} 2. c4 {[%emt 0:00:00]} e6 {[%emt 0:00:00]} 3. Nc3 {[%emt 0:00:00]} Bb4 {[%emt 0:00:00]} 4. f3 {[%emt 0:00:00]} c5 {[%emt 0:00:00]} 5. a3 {[%emt 0:00:13]} Bxc3+ {[%emt 0:00:04]} 6. bxc3 {[%emt 0:00:05]} Nc6 {[%emt 0:00:06]} 7. e4 {[%emt 0:01:18]} d6 {[%emt 0:00:05]} 8. Be3 {[%emt 0:00:16]} b6 {[%emt 0:00:04]} 9. Bd3 {[%emt 0:00:50]} Na5 {[%emt 0:00:39]} 10. Ne2 {[%emt 0:03:33]} Ba6 {[%emt 0:00:34]} 11. Ng3 {[%emt 0:00:17]} Qc7 {[%emt 0:01:08]} 12. Rc1 {[%emt 0:09:14]} Rc8 {[%emt 0:00:28]} 13. O-O {[%emt 0:33:20]} O-O {[%emt 0:04:43]} 14. dxc5 {[%emt 0:06:19]} bxc5 {[%emt 0:10:17]} 15. Qe2 {[%emt 0:02:54]} Nd7 {[%emt 0:08:54]} 16. f4 {[%emt 0:01:11]} f6 {[%emt 0:01:57]} 17. e5 {[%emt 0:07:53]} dxe5 {[%emt 0:01:48]} 18. f5 {[%emt 0:00:16]} e4 {[%emt 0:04:02]} 19. Bxe4 {[%emt 0:14:04]} Bxc4 {[%emt 0:01:19]} 20. Qh5 {[%emt 0:00:38]} Ne5 {[%emt 0:08:48]} 21. fxe6 {[%emt 0:01:45]} g6 {[%emt 0:00:57]} 22. Qh4 {[%emt 0:00:02]} Qe7 {[%emt 0:03:57]} 23. Rfe1 {[%emt 0:13:17]} Bxe6 {[%emt 0:01:20]} 24. Bh6 {[%emt 0:00:48]} Rfe8 {[%emt 0:01:27]} 25. h3 {[%emt 0:01:17]} Bc4 {[%emt 0:08:56]} 26. Rc2 {[%emt 0:01:00]} Nf7 {[%emt 0:01:22]} 27. Nh5 {[%emt 0:01:36]} Nxh6 {[%emt 0:03:37]} 28. Bd5+ {[%emt 0:00:24]} 1-0

[Event "WYCC 2018 O16"]
[Site "Halkidiki"]
[Date "2018.10.26"]
[Round "7"]
[White "Lund, Gunnar"]
[Black "Onslow, Alfie"]
[Result "1-0"]
[ECO "D00"]
[WhiteElo "2227"]
[BlackElo "2037"]
[Annotator "NA"]
[PlyCount "61"]
[EventDate "2018.10.20"]
[EventType "swiss"]
[EventCountry "GRE"]
[SourceTitle "playchess.com"]
[Source "ChessBase"]
[SourceQuality "1"]
[TimeControl "40/5400+30:1800+30"]

1. d4 {[%emt 0:00:00]} d5 {[%emt 0:00:00]} 2. Bf4 {[%emt 0:00:00]} Nf6 {[%emt 0:00:00]} 3. e3 {[%emt 0:00:20]} c5 {[%emt 0:00:01]} 4. c3 {[%emt 0:00:08]} Nc6 {[%emt 0:00:06]} 5. Nd2 {[%emt 0:00:07]} Bf5 {[%emt 0:01:32]} 6. Ngf3 {[%emt 0:00:07]} e6 {[%emt 0:04:03]} 7. Qb3 {[%emt 0:00:34]} Qb6 {[%emt 0:02:44]} 8. Qxb6 {[%emt 0:16:35]} axb6 {[%emt 0:00:02]} 9. Bb5 {[%emt 0:06:21]} Be7 {[%emt 0:09:46]} 10. Bc7 {[%emt 0:06:50]} Nd7 {[%emt 0:06:19]} 11. O-O {[%emt 0:04:42]} O-O {[%emt 0:03:31]} 12. Rfe1 {[%emt 0:00:37]} Rfc8 {[%emt 0:07:46]} 13. Bg3 {[%emt 0:01:43]} Nf6 {[%emt 0:04:43]} 14. h3 {[%emt 0:07:22]} h6 {[%emt 0:00:50]} 15. Ne5 {[%emt 0:00:14]} Nxe5 {[%emt 0:02:34]} 16. Bxe5 {[%emt 0:00:18]} Ne4 {[%emt 0:05:19]} 17. Nxe4 {[%emt 0:01:02]} Bxe4 {[%emt 0:00:16]} 18. f3 {[%emt 0:00:57]} Bg6 {[%emt 0:00:13]} 19. Bg3 {[%emt 0:00:59]} c4 {[%emt 0:23:09]} 20. e4 {[%emt 0:03:49]} Ra5 {[%emt 0:02:16]} 21. a4 {[%emt 0:00:32]} dxe4 {[%emt 0:03:53]} 22. fxe4 {[%emt 0:00:49]} Kf8 {[%emt 0:11:54]} 23. Kh2 {[%emt 0:02:59]} Rca8 {[%emt 0:02:40]} 24. Rad1 {[%emt 0:04:50]} Bh5 {[%emt 0:01:28]} 25. Rd2 {[%emt 0:00:45]} Rd8 {[%emt 0:01:00]} 26. Rf2 {[%emt 0:04:21]} f6 {[%emt 0:01:38]} 27. Bc7 {[%emt 0:00:29]} Bd6+ {[%emt 0:00:11]} 28. Bxd6+ {[%emt 0:00:06]} Rxd6 {[%emt 0:00:01]} 29. e5 {[%emt 0:00:06]} Rd8 {[%emt 0:01:05]} 30. exf6 {[%emt 0:00:07]} Be8 {[%emt 0:01:04]} 31. Bxc4 {[%emt 0:02:37]} 1-0

[Event "WYCC 2018 O16"]
[Site "Halkidiki"]
[Date "2018.10.26"]
[Round "7"]
[White "Wang, Yanbin"]
[Black "Wijesinghe, N L C Dojitha"]
[Result "1-0"]
[ECO "A05"]
[WhiteElo "2220"]
[BlackElo "1688"]
[Annotator "NA"]
[PlyCount "95"]
[EventDate "2018.10.20"]
[EventType "swiss"]
[EventCountry "GRE"]
[SourceTitle "playchess.com"]
[Source "ChessBase"]
[SourceQuality "1"]
[TimeControl "40/5400+30:1800+30"]

1. Nf3 {[%emt 0:00:00]} Nf6 {[%emt 0:00:14]} 2. g3 {[%emt 0:00:00]} d5 {[%emt 0:00:55]} 3. Bg2 {[%emt 0:00:00]} g6 {[%emt 0:00:15]} 4. O-O {[%emt 0:00:00]} Bg7 {[%emt 0:00:05]} 5. d3 {[%emt 0:00:06]} c5 {[%emt 0:00:39]} 6. Nbd2 {[%emt 0:00:08]} Nc6 {[%emt 0:00:14]} 7. e4 {[%emt 0:00:16]} O-O {[%emt 0:00:21]} 8. Qe2 {[%emt 0:00:36]} e6 {[%emt 0:01:39]} 9. Rd1 {[%emt 0:00:25]} Re8 {[%emt 0:01:47]} 10. a4 {[%emt 0:00:41]} a5 {[%emt 0:00:43]} 11. Nf1 {[%emt 0:00:52]} e5 {[%emt 0:07:49]} 12. exd5 {[%emt 0:01:32]} Nxd5 {[%emt 0:00:13]} 13. c3 {[%emt 0:00:20]} f5 {[%emt 0:09:48]} 14. Bg5 {[%emt 0:01:01]} Qd7 {[%emt 0:09:24]} 15. d4 {[%emt 0:04:08]} cxd4 {[%emt 0:13:31]} 16. Nxd4 {[%emt 0:25:12]} Nxd4 {[%emt 0:13:32]} 17. cxd4 {[%emt 0:00:46]} e4 {[%emt 0:01:53]} 18. f3 {[%emt 0:00:45]} h6 {[%emt 0:02:35]} 19. fxe4 {[%emt 0:01:31]} Kh7 {[%emt 0:07:21]} 20. Qc4 {[%emt 0:02:48]} Nb6 {[%emt 0:04:08]} 21. Qb3 {[%emt 0:00:31]} Bxd4+ {[%emt 0:12:12]} 22. Rxd4 {[%emt 0:00:17]} Qxd4+ {[%emt 0:00:58]} 23. Be3 {[%emt 0:00:04]} Qf6 {[%emt 0:00:58]} 24. Bxb6 {[%emt 0:00:47]} Be6 {[%emt 0:01:10]} 25. Qb5 {[%emt 0:00:41]} Bc4 {[%emt 0:01:50]} 26. Qd7+ {[%emt 0:00:51]} Re7 {[%emt 0:00:32]} 27. Qd4 {[%emt 0:00:06]} Qxd4+ {[%emt 0:00:15]} 28. Bxd4 {[%emt 0:00:02]} fxe4 {[%emt 0:00:31]} 29. Ne3 {[%emt 0:00:04]} Bd3 {[%emt 0:02:06]} 30. Nd5 {[%emt 0:00:08]} Rf7 {[%emt 0:02:40]} 31. Nf6+ {[%emt 0:00:05]} Kh8 {[%emt 0:00:49]} 32. Nxe4+ {[%emt 0:00:05]} Kh7 {[%emt 0:00:09]} 33. Nf6+ {[%emt 0:00:16]} Kg7 {[%emt 0:00:17]} 34. Ng4+ {[%emt 0:00:23]} Kh7 {[%emt 0:01:04]} 35. Ne5 {[%emt 0:00:05]} Re7 {[%emt 0:00:41]} 36. Nxd3 {[%emt 0:00:16]} Rd7 {[%emt 0:00:45]} 37. Bc3 {[%emt 0:00:11]} Rxd3 {[%emt 0:00:27]} 38. Bxb7 {[%emt 0:00:04]} Ra7 {[%emt 0:01:06]} 39. Be4 {[%emt 0:00:08]} Rd6 {[%emt 0:00:50]} 40. Rf1 {[%emt 0:00:00]} Rd8 {[%emt 0:00:00]} 41. Rf6 {[%emt 0:00:31]} Rg8 {[%emt 0:02:37]} 42. g4 {[%emt 0:00:07]} Re7 {[%emt 0:05:50]} 43. Bc2 {[%emt 0:00:05]} Rc7 {[%emt 0:02:03]} 44. h4 {[%emt 0:00:17]} h5 {[%emt 0:07:22]} 45. gxh5 {[%emt 0:00:19]} Kh6 {[%emt 0:00:55]} 46. Rxg6+ {[%emt 0:00:25]} Rxg6+ {[%emt 0:00:11]} 47. hxg6 {[%emt 0:00:02]} Rc4 {[%emt 0:00:43]} 48. g7 {[%emt 0:01:16]} 1-0

[Event "WYCC 2018 O16"]
[Site "Halkidiki"]
[Date "2018.10.26"]
[Round "7"]
[White "Gabizon, Eyal"]
[Black "Vrolijk, Liam"]
[Result "0-1"]
[ECO "E48"]
[WhiteElo "2205"]
[BlackElo "2437"]
[Annotator "NA RC"]
[PlyCount "70"]
[EventDate "2018.10.20"]
[EventType "swiss"]
[EventCountry "GRE"]
[SourceTitle "playchess.com"]
[Source "ChessBase"]
[SourceQuality "1"]
[TimeControl "40/5400+30:1800+30"]

1. d4 {[%emt 0:00:00]} Nf6 {[%emt 0:00:00]} 2. c4 {[%emt 0:00:00]} e6 {[%emt 0:00:00]} 3. Nc3 {[%emt 0:00:00]} Bb4 {[%emt 0:00:00]} 4. e3 {[%emt 0:00:00]} O-O {[%emt 0:00:00]} 5. Bd3 {[%emt 0:00:00]} d5 {[%emt 0:00:03]} 6. cxd5 {[%emt 0:00:00]} exd5 {[%emt 0:00:09]} 7. Nge2 {[%emt 0:00:00] LiveBook: 658 Games} Re8 {[%emt 0:02:23]} 8. O-O {[%emt 0:00:02]} Bd6 {[%emt 0:02:58]} 9. Ng3 {[%emt 0:09:09]} b6 {[%emt 0:06:40]} 10. Bd2 {[%emt 0:03:37]} c5 $11 {[%emt 0:03:50]} 11. dxc5 {[%emt 0:11:19]} bxc5 {[%emt 0:00:42]} 12. Rc1 {[%emt 0:02:13]} Nbd7 {[%emt 0:04:43]} 13. Re1 {[%emt 0:14:30]} Bb7 {[%emt 0:06:23]} 14. Qa4 {[%emt 0:10:49]} Ne5 {[%emt 0:14:36]} 15. Bf1 {[%emt 0:00:52]} a6 {[%emt 0:06:47]} 16. f3 {[%emt 0:04:50]} g6 {[%emt 0:05:27]} 17. Rcd1 {[%emt 0:08:52]} h5 {[%emt 0:11:36]} 18. f4 {[%emt 0:13:29]} Ned7 {[%emt 0:05:40]} 19. e4 {[%emt 0:03:20]} h4 {[%emt 0:03:47]} 20. Nh1 {[%emt 0:01:53]} c4 {[%emt 0:06:48]} 21. Nf2 {[%emt 0:05:10]} Bc5 {[%emt 0:00:31]} 22. Be3 {[%emt 0:04:18]} Bxe3 {[%emt 0:03:03]} 23. Rxe3 {[%emt 0:00:06]} Qb6 {[%emt 0:00:09]} 24. Re2 {[%emt 0:00:39]} Nc5 {[%emt 0:01:17]} 25. Qc2 {[%emt 0:00:04]} Ncxe4 {[%emt 0:02:02]} 26. Kh1 {[%emt 0:00:29]} Nxf2+ {[%emt 0:00:21]} 27. Rxf2 {[%emt 0:00:01]} Ng4 {[%emt 0:00:09]} 28. Rf3 {[%emt 0:02:01]} Ne3 {[%emt 0:00:52]} 29. Qf2 {[%emt 0:02:51]} d4 {[%emt 0:00:21]} 30. Rh3 {[%emt 0:00:35]} Qf6 {[%emt 0:01:16]} 31. Rxe3 {[%emt 0:02:50]} dxe3 {[%emt 0:00:38]} 32. Qe2 {[%emt 0:00:39]} Qxf4 {[%emt 0:00:51]} 33. Qxc4 {[%emt 0:01:00]} Qxc4 {[%emt 0:00:13]} 34. Bxc4 {[%emt 0:00:03]} Rad8 {[%emt 0:00:23]} 35. Rf1 {[%emt 0:00:09]} Re7 {[%emt 0:00:16]} 0-1

[Event "WYCC 2018 O16"]
[Site "Halkidiki"]
[Date "2018.10.26"]
[Round "7"]
[White "Kotau, Arseni"]
[Black "Gatineau, Yovann"]
[Result "0-1"]
[ECO "D85"]
[WhiteElo "2167"]
[BlackElo "2376"]
[Annotator "NA"]
[PlyCount "104"]
[EventDate "2018.10.20"]
[EventType "swiss"]
[EventCountry "GRE"]
[SourceTitle "playchess.com"]
[Source "ChessBase"]
[SourceQuality "1"]
[TimeControl "40/5400+30:1800+30"]

1. d4 {[%emt 0:00:00]} Nf6 {[%emt 0:02:49]} 2. c4 {[%emt 0:00:07]} g6 {[%emt 0:00:14]} 3. Nc3 {[%emt 0:00:33]} d5 {[%emt 0:01:08]} 4. cxd5 {[%emt 0:00:06]} Nxd5 {[%emt 0:00:05]} 5. Bd2 {[%emt 0:00:21]} Nb6 {[%emt 0:01:03]} 6. e3 {[%emt 0:00:15]} Bg7 {[%emt 0:00:17]} 7. f4 {[%emt 0:00:32]} O-O {[%emt 0:00:48]} 8. Nf3 {[%emt 0:00:04]} Be6 {[%emt 0:00:03]} 9. Rc1 {[%emt 0:13:50]} c5 {[%emt 0:12:30]} 10. dxc5 {[%emt 0:12:37]} N6d7 {[%emt 0:00:12]} 11. Na4 {[%emt 0:00:33]} Nc6 {[%emt 0:03:18]} 12. b3 {[%emt 0:10:51]} Bg4 {[%emt 0:03:44]} 13. Be2 {[%emt 0:15:21]} e5 {[%emt 0:01:18]} 14. O-O {[%emt 0:00:10]} Re8 {[%emt 0:03:24]} 15. Kh1 {[%emt 0:07:37]} Qe7 {[%emt 0:01:11]} 16. Nxe5 {[%emt 0:02:16]} Ndxe5 {[%emt 0:02:29]} 17. Bxg4 {[%emt 0:00:44]} Nd3 {[%emt 0:00:26]} 18. Rc4 {[%emt 0:00:58]} Rad8 {[%emt 0:00:38]} 19. Bf3 {[%emt 0:02:35]} Qd7 {[%emt 0:02:32]} 20. Qc2 {[%emt 0:08:38]} Nxf4 {[%emt 0:09:49]} 21. Rxf4 {[%emt 0:04:02]} Qxd2 {[%emt 0:00:05]} 22. Qxd2 {[%emt 0:00:05]} Rxd2 {[%emt 0:00:05]} 23. Bxc6 {[%emt 0:07:21]} bxc6 {[%emt 0:00:08]} 24. Rxf7 {[%emt 0:00:04]} Rf8 {[%emt 0:00:05]} 25. Rxf8+ {[%emt 0:00:13]} Bxf8 {[%emt 0:00:04]} 26. g3 {[%emt 0:01:25]} Kg7 {[%emt 0:02:07]} 27. Rf4 {[%emt 0:02:10]} Rxa2 {[%emt 0:01:38]} 28. Rb4 {[%emt 0:00:35]} h5 {[%emt 0:05:51]} 29. Rb7+ {[%emt 0:00:42]} Kf6 {[%emt 0:00:47]} 30. Rc7 {[%emt 0:01:37]} Bh6 {[%emt 0:02:42]} 31. Rxc6+ {[%emt 0:01:56]} Kf5 {[%emt 0:00:05]} 32. Nc3 {[%emt 0:03:44]} Rb2 {[%emt 0:05:49]} 33. Nd5 {[%emt 0:01:12]} Bg7 {[%emt 0:13:08]} 34. Rc7 {[%emt 0:03:06]} Be5 {[%emt 0:00:14]} 35. Ne7+ {[%emt 0:00:35]} Kg4 {[%emt 0:00:55]} 36. Rd7 {[%emt 0:00:06]} Kh3 {[%emt 0:02:57]} 37. Kg1 {[%emt 0:00:29]} Rg2+ {[%emt 0:05:36]} 38. Kf1 {[%emt 0:00:15]} Kxh2 {[%emt 0:00:04]} 39. c6 {[%emt 0:01:06]} Bxg3 {[%emt 0:00:37]} 40. c7 {[%emt 0:00:37]} Rf2+ {[%emt 0:00:00]} 41. Ke1 {[%emt 0:00:03]} Rc2+ {[%emt 0:00:30]} 42. Kf1 {[%emt 0:04:52]} Rf2+ {[%emt 0:02:32]} 43. Ke1 {[%emt 0:00:06]} Rc2+ {[%emt 0:00:03]} 44. Kf1 {[%emt 0:00:07]} Bxc7 {[%emt 0:00:06]} 45. Nxg6 {[%emt 0:00:16]} Bg3 {[%emt 0:02:33]} 46. Rf7 {[%emt 0:01:22]} h4 {[%emt 0:00:12]} 47. e4 {[%emt 0:01:59]} h3 {[%emt 0:01:33]} 48. e5 {[%emt 0:00:13]} Rc1+ {[%emt 0:00:04]} 49. Ke2 {[%emt 0:00:03]} Kg2 {[%emt 0:00:06]} 50. Rg7 {[%emt 0:00:36]} Re1+ {[%emt 0:00:49]} 51. Kd2 {[%emt 0:00:03]} h2 {[%emt 0:00:33]} 52. Nh4+ {[%emt 0:00:55]} Kh3 {[%emt 0:00:18]} 0-1